bitfinex-derivatives/quotes_ETHF0:USTF0_20250726
["timestamp","ask_amount","ask_price","bid_price","bid_amount"]
[1753520722788,5.8307,3759.9,3759.8,18.18850636]
[1753520722988,6.36248,3759.9,3759.8,16.76010636]
[1753520723892,5.8307,3759.9,3759.8,18.18850636]
[1753520724992,5.8307,3759.9,3759.8,16.76010636]
[1753520725293,5.8307,3759.9,3759.8,18.18850636]
[1753520730893,9.0385,3759.9,3759.8,18.18850636]
[1753520731794,9.0385,3759.9,3759.8,4.68250636]
[1753520736294,7.433,3760.4,3760.3,0.53172]
[1753520736496,8.96195217,3760.4,3760.3,4.42082]
[1753520736898,1.52895217,3760.4,3760.3,4.42082]
[1753520737100,0.76485217,3760.4,3760.3,4.42082]
[1753520738000,5.5942,3760.8,3760.7,2.13196]
[1753520738201,9.88617592,3760.8,3760.7,4.42076]
[1753520738401,8.96197592,3760.8,3760.7,4.42076]
[1753520738602,9.88617592,3760.8,3760.7,4.42076]
[1753520739100,4.05877,3760.7,3760.5,0.8595]
[1753520739294,6.28585592,3760.6,3760.5,1.4715]
[1753520739601,7.21005592,3760.6,3760.5,1.4715]
[1753520740398,7.21005592,3760.6,3760.5,2.9008]
[1753520740605,6.67837592,3760.6,3760.5,2.9008]
[1753520740795,7.21005592,3760.6,3760.5,2.9008]
[1753520741603,7.21005592,3760.6,3760.5,3.8891]
[1753520742504,6.67837592,3760.6,3760.5,3.8891]
[1753520743801,6.67837592,3760.6,3760.5,0.8595]
[1753520744105,6.67837592,3760.6,3760.5,4.42079]
[1753520744304,6.67837592,3760.6,3760.5,3.8891]
[1753520744707,6.67837592,3760.6,3760.5,4.42079]
[1753520745203,6.67837592,3760.6,3760.5,3.8891]
[1753520745509,6.67837592,3760.6,3760.5,4.42079]
[1753520747008,6.67837592,3760.6,3759.9,4.53724]
[1753520747215,3.2078,3756.8,3755.9,9.5382091]
[1753520747505,27.35020592,3760.5,3753.5,0.8595]
[1753520747506,3.2078,3756.0,3753.5,0.8595]
[1753520747710,3.2078,3754.1,3754.0,2.2888]
[1753520747903,3.2078,3754.1,3754.0,3.1138]
[1753520748101,3.2078,3754.1,3754.0,38.51745]
[1753520749814,3.2078,3754.1,3754.0,53.38445]
[1753520750218,3.2078,3754.1,3754.0,76.37445]
[1753520750622,3.2078,3754.1,3754.0,61.50745]
[1753520750825,3.2078,3754.1,3754.0,81.38645]
[1753520751023,3.2078,3754.1,3754.0,61.50745]
[1753520751322,3.2078,3754.1,3754.0,76.40945]
[1753520751518,3.2078,3754.1,3754.0,38.51745]
[1753520751825,3.2078,3754.1,3754.0,76.42545]
[1753520752522,3.2078,3754.1,3754.0,76.45345]
[1753520753117,4.16672353,3754.1,3754.0,76.45345]
[1753520753522,4.69932353,3754.1,3754.0,76.47845]
[1753520753828,4.16672353,3754.1,3754.0,76.47845]
[1753520754127,4.69932353,3754.1,3754.0,76.47845]
[1753520754620,4.69932353,3754.1,3754.0,61.51545]
[1753520754921,4.69932353,3754.1,3754.0,76.50645]
[1753520755224,4.16672353,3754.1,3754.0,76.51245]
[1753520755423,4.69932353,3754.1,3754.0,76.50845]
[1753520755625,5.07462868,3754.1,3754.0,38.51745]
[1753520755925,4.54202868,3754.1,3754.0,38.51745]
[1753520756224,4.54202868,3754.1,3754.0,76.52245]
[1753520756726,5.07462868,3754.1,3754.0,76.52245]
[1753520756915,0.90790515,3754.1,3754.0,38.51745]
[1753520757122,5.8107,3754.9,3754.2,0.8595]
[1753520757323,8.0149,3754.9,3754.8,4.3261]
[1753520757523,8.54738,3754.9,3754.8,20.7584]
[1753520757726,8.0149,3754.9,3754.8,19.6674]
[1753520758227,9.9215033,3754.9,3754.8,15.8935]
[1753520758725,9.9215033,3754.9,3754.8,20.7894]
[1753520759217,8.0149,3754.9,3754.8,20.7894]
[1753520759822,9.88956965,3754.9,3754.8,20.7894]
[1753520760030,3.2078,3754.9,3754.8,50.5981]
[1753520760321,5.3342,3754.4,3754.3,5.33]
[1753520760522,1.8742484,3754.7,3754.6,2.4429]
[1753520760723,3.2078,3754.8,3754.7,5.86251]
[1753520760925,3.2078,3754.8,3754.7,35.13951]
[1753520761128,3.2078,3754.8,3754.7,34.607]
[1753520761629,3.2078,3754.8,3754.7,31.7199]
[1753520762021,7.169,3754.8,3754.0,3.2078]
[1753520762221,3.8644,3754.2,3754.1,31.8091]
[1753520762428,2.898,3754.4,3754.3,17.4218]
[1753520762732,5.3342,3754.4,3754.3,19.2777]
[1753520762924,5.3342,3754.4,3754.3,32.5953]
[1753520763123,7.20688568,3754.4,3754.3,16.6351]
[1753520763323,7.20688568,3754.4,3754.3,31.8131]
[1753520763519,6.2056,3754.4,3754.3,16.0546]
[1753520763724,6.2056,3754.4,3754.3,0.8746]
[1753520763924,6.2056,3754.4,3754.3,16.0526]
[1753520764327,6.2056,3754.4,3754.3,16.0606]
[1753520765026,6.2056,3754.4,3754.3,16.0506]
[1753520766034,6.2056,3754.4,3754.3,16.0396]
[1753520766534,6.2056,3754.4,3754.3,16.57217]
[1753520767226,6.2056,3754.4,3754.3,16.55717]
[1753520767428,6.2056,3754.4,3754.3,16.0246]
[1753520767833,6.2056,3754.4,3754.3,16.55717]
[1753520768435,6.2056,3754.4,3754.3,16.0246]
[1753520768933,7.1365823,3754.4,3754.3,16.0246]
[1753520769134,4.8326,3754.2,3754.1,0.8746]
[1753520769436,2.4914,3754.0,3753.9,1.12272]
[1753520769736,7.1365823,3754.0,3753.9,32.91482]
[1753520770236,7.6691923,3754.0,3753.9,33.2547]
[1753520770428,0.9309823,3754.0,3753.9,18.1177]
[1753520770628,0.9309823,3754.0,3753.9,35.17843]
[1753520771033,1.8592823,3754.0,3753.9,35.17843]
[1753520771232,0.9309823,3754.0,3753.9,51.16963]
[1753520771433,2.80366798,3754.0,3753.9,51.16963]
[1753520771734,1.8592823,3754.0,3753.9,51.16963]
[1753520772136,3.2078,3754.6,3754.5,0.53254]
[1753520772324,4.10761207,3754.6,3754.5,21.89014]
[1753520772524,10.31321207,3754.6,3754.5,13.84934]
[1753520772726,2.4914,3754.1,3754.0,2.4429]
[1753520772934,7.0722,3754.1,3754.0,18.17951]
[1753520773136,3.2078,3754.1,3754.0,47.45891]
[1753520773337,3.2078,3754.1,3754.0,51.22061]
[1753520773539,3.2078,3754.1,3754.0,51.22661]
[1753520773937,4.8326,3754.4,3754.3,2.97547]
[1753520774139,9.4134,3754.4,3754.3,6.73717]
[1753520774329,7.9436,3754.4,3754.3,20.05477]
[1753520774530,4.7328,3754.4,3754.3,20.05477]
[1753520774736,3.2078,3754.9,3754.8,2.9754]
[1753520774934,3.2078,3754.9,3754.8,21.9341]
[1753520775141,3.2078,3754.9,3754.8,56.2103]
[1753520775336,0.8714,3755.5,3755.2,6.2046]
[1753520775337,3.2078,3755.3,3755.2,6.2046]
[1753520775538,3.2078,3755.3,3755.2,21.93804]
[1753520775844,3.2078,3755.7,3755.6,6.73699]
[1753520776038,3.2078,3755.7,3755.6,37.89719]
[1753520776237,3.2078,3755.7,3755.6,35.25059]
[1753520776437,9.4134,3755.7,3755.6,35.25059]
[1753520777339,9.4134,3755.7,3755.6,19.14489746]
[1753520777541,9.4134,3755.7,3755.6,34.34189746]
[1753520777838,1.373,3756.0,3755.9,0.53234]
[1753520778042,3.2078,3756.1,3756.0,6.73693]
[1753520778340,6.2056,3756.4,3756.3,6.73689]
[1753520778536,9.4134,3756.4,3756.3,6.73689]
[1753520778939,3.0068,3757.7,3757.6,1.481]
[1753520779241,3.8782,3757.1,3757.0,2.99449]
[1753520779435,3.7694,3757.1,3757.0,22.02179]
[1753520779636,4.7328,3757.3,3757.2,2.97506]
[1753520779837,6.1058,3757.3,3757.2,6.73676]
[1753520780044,6.9772,3757.3,3757.2,33.42200546]
[1753520780242,1.525,3757.7,3757.6,2.975]
[1753520780444,1.525,3757.7,3757.6,38.0059]
[1753520780638,1.525,3757.7,3757.6,49.38414546]
[1753520780845,3.098,3757.9,3757.8,2.97497]
[1753520781039,3.098,3757.9,3757.8,34.07511546]
[1753520782133,5.87247355,3757.9,3757.8,34.07511546]
[1753520782338,4.1462,3757.9,3757.8,15.338]
[1753520782540,4.1462,3757.9,3757.8,18.92247]
[1753520782838,4.0782,3757.9,3757.8,20.66857]
[1753520783038,3.9694,3757.9,3757.8,22.07467]
[1753520783640,0.2,3757.9,3757.8,33.45291546]
[1753520783839,0.2,3757.9,3757.8,49.41311546]
[1753520784341,0.9081468,3757.9,3757.8,34.07511546]
[1753520784546,0.9081468,3757.9,3757.8,49.40311546]
[1753520784946,0.90377216,3757.9,3757.8,34.07511546]
[1753520785149,0.90377216,3757.9,3757.8,49.40211546]
[1753520787147,1.4223444,3758.3,3758.2,2.38482]
[1753520787356,1.4223444,3758.4,3758.3,2.9749]
[1753520787541,1.4223444,3758.4,3758.3,6.7366]
[1753520787742,5.7076,3759.0,3758.9,4.7985]
[1753520788047,5.7076,3759.0,3758.9,2.10332]
[1753520788352,5.7076,3759.0,3758.9,16.8824]
[1753520788651,5.7076,3759.0,3758.9,18.3634]
[1753520788852,5.7076,3759.0,3758.5,2.3556]
[1753520789046,2.4914,3759.0,3758.9,29.78134546]
[1753520789246,2.4914,3759.0,3758.9,47.98586546]
[1753520789247,5.7076,3759.0,3758.9,47.98586546]
[1753520789644,5.7076,3759.0,3758.9,49.39196546]
[1753520790146,5.7076,3759.0,3758.9,47.98586546]
[1753520790347,1.4231,3758.7,3758.6,3.4206]
[1753520790550,4.5488,3758.7,3758.6,21.95266]
[1753520790744,3.2231,3759.0,3758.9,2.96752]
[1753520790944,4.5488,3759.0,3758.9,6.64662]
[1753520791147,4.5488,3759.0,3758.9,18.02486546]
[1753520791853,3.6211,3759.3,3759.2,6.64658]
[1753520792046,3.6211,3759.3,3759.2,49.28102546]
[1753520792956,4.5668,3759.3,3759.2,49.28102546]
[1753520793257,5.5393,3759.3,3759.2,49.28102546]
[1753520794152,4.5668,3759.3,3759.2,48.74914546]
[1753520794352,4.5668,3759.3,3759.2,49.28102546]
[1753520794752,4.5668,3759.3,3759.2,48.74914546]
[1753520795055,5.09866,3759.3,3759.2,48.74914546]
[1753520795254,0.018,3759.3,3759.2,49.28102546]
[1753520796247,3.2078,3759.6,3759.5,0.53183]
[1753520796447,4.7488,3759.9,3759.8,6.1147]
[1753520796648,5.7393,3759.9,3759.8,48.70914546]
[1753520797047,1.6231,3759.9,3759.8,48.70914546]
[1753520797352,0.2,3759.9,3759.8,49.24093546]
[1753520798554,5.7393,3759.9,3759.8,49.23793546]
[1753520799448,0.2,3759.9,3759.8,49.23793546]
[1753520800355,5.7393,3759.9,3759.8,49.21593546]
[1753520800554,8.9471,3759.9,3759.8,49.21593546]
[1753520800757,5.7393,3759.9,3759.8,49.21593546]
[1753520800946,5.7393,3759.9,3759.8,48.68414546]
[1753520801759,6.27108,3759.9,3759.8,48.68414546]
[1753520802156,6.27108,3759.9,3758.9,3.2078]
[1753520802157,0.53188,3759.2,3759.1,2.3816]
[1753520802351,6.07118,3759.2,3759.1,19.1405]
[1753520802553,6.07118,3759.2,3759.1,30.51874546]
[1753520803161,6.07118,3759.2,3759.1,19.1405]
[1753520803362,6.07118,3759.2,3759.1,15.223]
[1753520804062,6.07118,3759.2,3759.1,16.7049]
[1753520804461,6.07118,3759.2,3759.1,17.6486]
[1753520804756,3.2078,3759.5,3759.1,44.99704546]
[1753520804956,2.7488,3759.5,3759.4,33.98499546]
[1753520805149,1.422,3759.7,3759.6,0.53182]
[1753520805361,1.4231,3759.7,3759.6,22.60672]
[1753520805660,1.4231,3759.7,3759.6,33.45314546]
[1753520805868,3.6031,3759.7,3759.6,33.45314546]
[1753520806058,4.5488,3759.7,3759.6,33.45314546]
[1753520806263,4.5488,3759.7,3759.6,33.98496546]
[1753520806561,2.7488,3759.7,3759.6,33.98496546]
[1753520806759,4.1349,3759.7,3759.6,33.45314546]
[1753520806954,5.0806,3759.7,3759.6,33.45314546]
[1753520807154,6.0711,3759.7,3759.6,15.29574546]
[1753520807963,0.2,3759.9,3759.3,0.9437]
[1753520807964,5.21685,3759.4,3759.3,0.9437]
[1753520808166,2.90065,3759.4,3759.3,16.6989]
[1753520808463,2.90065,3759.4,3759.3,19.1345]
[1753520808665,6.07115,3759.4,3759.3,19.1345]
[1753520808862,6.07115,3759.4,3759.3,16.1607]
[1753520809166,5.5393,3759.4,3759.3,16.69256]
[1753520809367,6.07115,3759.4,3759.3,18.17446]
[1753520809664,6.07115,3759.4,3759.3,17.6426]
[1753520809866,5.5393,3759.4,3759.3,18.17446]
[1753520810062,5.5393,3759.4,3759.3,18.76666]
[1753520810563,5.5393,3759.4,3759.3,21.86356]
[1753520810764,5.5393,3759.4,3759.3,18.76666]
[1753520810964,5.5393,3759.4,3759.3,19.66636]
[1753520811162,3.6031,3759.4,3759.3,49.20200546]
[1753520811963,3.6031,3759.4,3759.3,48.67014546]
[1753520812166,4.13495,3759.4,3759.3,48.67014546]
[1753520812566,5.08065,3759.4,3759.3,48.67014546]
[1753520812766,6.07115,3759.4,3759.3,48.67014546]
[1753520813370,9.27895,3759.4,3759.3,18.2348]
[1753520813671,9.27895,3759.4,3759.3,15.217]
[1753520814163,9.90152042,3759.4,3759.3,15.217]
[1753520817068,2.9007,3759.0,3758.9,19.0235]
[1753520817371,6.70160468,3759.0,3758.9,19.0235]
[1753520818071,6.70160468,3759.0,3758.9,15.106]
[1753520819170,6.07126,3758.6,3758.5,23.062]
[1753520819477,6.07126,3758.6,3758.5,21.2007]
[1753520821773,6.70189077,3758.6,3758.5,21.2007]
[1753520822176,6.07126,3758.6,3758.5,21.2007]
[1753520822475,9.27906,3758.6,3758.5,21.2007]
[1753520822675,9.90959744,3758.6,3758.5,19.0035]
[1753520824174,9.27906,3758.6,3758.5,19.0035]
[1753520824874,9.27906,3758.6,3758.5,19.9164]
[1753520825080,6.07126,3758.6,3758.5,21.2606]
[1753520825378,9.27906,3758.6,3758.5,21.2606]
[1753520830785,6.07126,3758.6,3758.5,21.2606]
[1753520832790,9.27906,3758.6,3758.5,21.2606]
[1753520833089,2.7243,3758.1,3758.0,29.2655]
[1753520833290,3.25633,3758.1,3758.0,44.2355]
[1753520833482,4.18383,3758.1,3758.0,71.57394546]
[1753520834489,1.98623,3758.1,3758.0,71.57394546]
[1753520837493,3.6518,3758.1,3758.0,71.57394546]
[1753520837788,4.18383,3758.1,3758.0,71.57394546]
[1753520839986,6.12253,3758.1,3758.0,17.64474546]
[1753520840192,6.12253,3758.1,3758.0,48.53494546]
[1753520841194,6.12253,3758.1,3758.0,19.8523]
[1753520841888,9.33033,3758.1,3758.0,18.9394]
[1753520842483,9.33033,3758.1,3758.0,18.0279]
[1753520843692,9.33033,3758.1,3758.0,17.4331]
[1753520845092,0.53206,3757.9,3757.8,2.2571]
[1753520845395,6.12256,3757.9,3757.8,4.0108]
[1753520846399,6.12256,3757.9,3757.8,3.0979]
[1753520846596,6.12256,3757.9,3757.8,1.4781]
[1753520847802,2.93449,3757.7,3757.6,19.3341]
[1753520848005,8.33989,3757.7,3757.6,32.53674546]
[1753520848199,9.33039,3757.7,3757.6,32.53674546]
[1753520849792,9.33039,3757.7,3757.6,21.1585]
[1753520853203,5.3996,3758.1,3757.6,48.49694546]
[1753520853407,5.93163,3758.1,3758.0,6.1848]
[1753520853598,5.03753,3758.1,3758.0,6.1848]
[1753520853901,3.73983,3758.1,3758.0,6.1848]
[1753520854800,3.73983,3758.1,3758.0,33.52324546]
[1753520854801,3.2078,3758.1,3758.0,33.52324546]
[1753520855006,3.2078,3758.1,3758.0,34.05529546]
[1753520855505,1.82967,3758.6,3758.4,6.1848]
[1753520855698,1.82967,3758.6,3758.5,6.1848]
[1753520855903,2.74792701,3758.6,3758.5,6.1848]
[1753520856103,2.48333853,3758.6,3758.5,6.1848]
[1753520856299,1.82967,3758.6,3758.5,6.1848]
[1753520856505,1.82966,3758.6,3758.5,6.71677]
[1753520856906,0.53196,3758.6,3758.5,34.05521546]
[1753520857105,6.9032,3758.8,3758.7,2.4644]
[1753520857412,3.6954,3758.8,3758.7,22.145]
[1753520857612,4.22733,3758.8,3758.7,33.52324546]
[1753520859409,4.7203,3758.5,3758.4,6.1848]
[1753520859607,3.6954,3758.5,3758.4,6.1848]
[1753520859808,4.22737,3758.5,3758.4,33.52324546]
[1753520861611,0.8941,3757.5,3757.3,3.2672257]
[1753520861913,6.72143,3757.4,3757.3,1.5089]
[1753520862110,6.72143,3757.4,3757.3,0.6076]
[1753520862310,3.06066,3757.2,3757.1,3.7689]
[1753520862510,9.92926,3757.2,3757.1,3.7689]
[1753520862707,9.92926,3757.2,3757.1,4.6702]
[1753520863815,9.92926,3757.2,3757.1,6.1848]
[1753520864008,9.92926,3757.2,3757.1,3.3657]
[1753520864208,9.92926,3757.2,3757.1,2.4644]
[1753520866113,3.73996,3757.2,3757.1,9.34534546]
[1753520866511,4.33946,3757.2,3757.1,9.34534546]
[1753520866818,9.92926,3757.2,3757.1,9.34534546]
[1753520870418,8.00026,3757.2,3757.1,9.34534546]
[1753520870613,4.33946,3757.2,3757.1,9.34534546]
[1753520870819,0.53212,3757.5,3757.4,2.4644]
[1753520871012,0.53212,3757.5,3757.4,9.34534546]
[1753520871712,3.06062,3757.5,3757.4,9.34534546]
[1753520872020,6.72142,3757.5,3757.4,9.34534546]
[1753520872214,0.53212,3757.5,3757.4,9.34534546]
[1753520873720,1.13162,3757.5,3757.4,9.34534546]
[1753520874716,2.60062,3757.5,3757.4,9.34534546]
[1753520875717,9.92915,3758.0,3757.9,6.1848]
[1753520875924,9.31107346,3758.0,3757.9,6.1848]
[1753520876119,9.31107346,3758.0,3757.9,9.34534546]
[1753520876519,10.20517346,3758.0,3757.9,9.34534546]
[1753520878726,9.92915,3758.0,3757.9,9.34534546]
[1753520879822,3.73985,3758.0,3757.9,9.34534546]
[1753520880223,6.17175,3758.0,3757.9,9.34534546]
[1753520880426,10.00055,3758.0,3757.9,9.34534546]
[1753520881124,7.0444,3758.0,3757.9,9.87740546]
[1753520881328,40.8,3758.5,3758.1,3.01523]
[1753520881329,0.53202,3758.2,3758.1,3.01523]
[1753520881524,3.2078,3758.4,3758.3,3.0152]
[1753520881729,4.16362507,3758.4,3758.3,24.21714546]
[1753520882325,10.42432507,3758.4,3758.3,24.21714546]
[1753520882728,7.47252567,3758.4,3758.3,23.68514546]
[1753520883628,6.79269,3758.4,3758.3,23.68514546]
[1753520884133,6.79269,3758.4,3758.3,24.21714546]
[1753520884736,10.00049,3758.4,3758.3,23.68514546]
[1753520884942,10.27645608,3758.4,3758.3,18.21864546]
[1753520885545,10.27645608,3758.4,3758.3,17.59754546]
[1753520886043,10.00049,3758.4,3758.3,17.59754546]
[1753520888844,15.00049,3758.4,3758.3,0.13834546]
[1753520889341,15.956592,3758.4,3758.3,0.13834546]
[1753520891944,0.53206,3757.9,3757.8,15.8525]
[1753520892146,7.68246,3757.9,3757.8,18.0298]
[1753520893942,7.68246,3757.9,3757.8,20.4236]
[1753520894147,7.68246,3757.9,3757.8,15.2314]
[1753520895047,8.36290422,3757.9,3757.8,15.2314]
[1753520895643,8.36290422,3757.9,3757.8,17.1275]
[1753520895948,8.36290422,3757.9,3757.8,20.4236]
[1753520896148,7.68246,3757.9,3757.8,20.4236]
[1753520898149,8.36326363,3757.9,3757.8,20.4236]
[1753520899052,4.42066363,3757.9,3757.8,20.4236]
[1753520899751,7.49496363,3757.9,3757.8,20.4236]
[1753520899951,8.36326363,3757.9,3757.8,20.4236]
[1753520903353,7.49496363,3757.9,3757.8,20.4236]
[1753520903744,8.36326363,3757.9,3757.8,20.4236]
[1753520905655,5.15546363,3757.9,3757.8,20.4236]
[1753520905849,8.36326363,3757.9,3757.8,20.4236]
[1753520906155,5.36907338,3757.9,3757.8,20.4236]
[1753520906343,4.68766,3757.9,3757.8,20.4236]
[1753520906549,5.36907334,3757.9,3757.8,20.4236]
[1753520906845,8.36387334,3757.9,3757.8,20.4236]
[1753520907249,7.49557334,3757.9,3757.8,20.4236]
[1753520907553,4.42127334,3757.9,3757.8,20.4236]
[1753520908053,4.42127334,3757.9,3757.8,6.0876]
[1753520908954,6.54777334,3757.9,3757.8,6.0876]
[1753520910155,7.49557334,3757.9,3757.8,6.0876]
[1753520911755,8.41647334,3757.9,3757.8,6.0876]
[1753520913157,4.42127334,3757.9,3757.8,6.0876]
[1753520913356,3.73986,3757.9,3757.8,6.0876]
[1753520914656,4.42138583,3757.9,3757.8,6.0876]
[1753520916257,4.99178583,3757.9,3757.8,6.0876]
[1753520916458,5.74086,3757.9,3757.8,6.0876]
[1753520917968,7.70466,3757.9,3757.8,6.0876]
[1753520932581,4.4969,3757.6,3757.5,6.0604]
[1753520932877,4.4969,3757.6,3757.5,20.0844]
[1753520933677,4.4969,3757.6,3757.5,6.0604]
[1753520933977,4.4969,3757.6,3757.5,20.0844]
[1753520937379,0.5321,3757.6,3757.5,17.04211]
[1753520937579,0.5321,3757.7,3757.6,1.1458]
[1753520937779,0.5321,3757.7,3757.6,6.0604]
[1753520937981,0.5321,3757.7,3757.6,6.5925]
[1753520938779,0.53208,3757.8,3757.7,2.486]
[1753520938980,0.53208,3757.8,3757.7,6.0604]
[1753520939176,3.2078,3757.9,3757.8,6.59247]
[1753520939481,0.71185784,3757.9,3757.8,6.59247]
[1753520939878,3.17345784,3757.9,3757.8,6.59247]
[1753520941279,3.17345784,3757.9,3757.8,20.61147]
[1753520941482,3.79115784,3757.9,3757.8,20.61147]
[1753520941782,3.79115784,3757.9,3757.8,20.0794]
[1753520941783,4.69455784,3757.9,3757.8,20.0794]
[1753520941982,4.69455784,3757.9,3757.8,20.61147]
[1753520943183,5.22661784,3757.9,3757.8,20.61147]
[1753520943682,4.69455784,3757.9,3757.8,20.61147]
[1753520943881,4.69455784,3757.9,3757.8,20.0754]
[1753520944277,5.22661784,3757.9,3757.8,20.0754]
[1753520949192,4.69455784,3757.9,3757.8,20.0754]
[1753520949888,5.22661784,3757.9,3757.8,20.0754]
[1753520950789,0.71185784,3757.9,3757.8,20.60747]
[1753520951290,2.13055784,3757.9,3757.8,20.60747]
[1753520951589,4.64065784,3757.9,3757.8,20.60747]
[1753520953891,0.71185784,3757.9,3757.8,20.60747]
[1753520954197,3.9288,3758.4,3758.3,6.2059]
[1753520954392,4.65728092,3758.4,3758.3,6.2059]
[1753520954995,4.65728092,3758.4,3758.3,6.7379]
[1753520955193,0.72848092,3758.4,3758.3,6.7379]
[1753520955386,2.14718092,3758.4,3758.3,6.7379]
[1753520955589,2.76488092,3758.4,3758.3,6.7379]
[1753520955790,4.65728092,3758.4,3758.3,6.2059]
[1753520955995,4.65728092,3758.4,3758.3,6.7379]
[1753520956394,1.6067,3758.0,3757.9,5.45785]
[1753520956598,4.65728092,3758.0,3757.9,5.45785]
[1753520956901,4.65728092,3758.0,3757.9,6.73795]
[1753520957199,0.72848092,3758.0,3757.9,6.73795]
[1753520957393,3.0421,3758.4,3758.3,3.4233]
[1753520957599,5.18908962,3758.4,3758.3,6.2059]
[1753520959501,4.65708962,3758.4,3758.3,6.2059]
[1753520959703,4.65708962,3758.4,3758.3,6.7379]
[1753520961404,0.72828962,3758.4,3758.3,6.7379]
[1753520961795,0.9034,3758.8,3758.6,2.491]
[1753520962099,0.9034,3758.8,3758.7,6.73785]
[1753520962307,0.73799732,3758.8,3758.7,6.73785]
[1753520963300,1.6067,3759.1,3759.0,1.5528]
[1753520963500,0.7373935,3759.1,3759.0,6.7378]
[1753520963693,4.8145,3759.6,3759.5,6.73773]
[1753520963899,8.63800122,3759.6,3759.5,6.2059]
[1753520964099,8.10618122,3759.6,3759.5,6.73773]
[1753520964295,4.66613553,3759.6,3759.5,6.73773]
[1753520965300,0.989,3759.8,3759.7,0.9382]
[1753520965507,2.57520605,3759.8,3759.7,6.2059]
[1753520965898,4.89730605,3759.8,3759.7,6.7377]
[1753520966100,4.89730605,3759.8,3759.7,6.2059]
[1753520967304,4.66518652,3759.8,3759.7,6.2059]
[1753520967504,4.46059,3759.8,3759.7,6.2059]
[1753520969200,4.46064,3759.5,3759.4,3.7445]
[1753520969396,3.9288,3759.5,3759.4,5.247]
[1753520969593,4.46063,3759.5,3759.4,6.2059]
[1753520971705,4.0261,3759.2,3759.1,6.1799]
[1753520972004,4.0261,3759.2,3759.1,20.68779]
[1753520972204,4.0261,3759.2,3759.1,20.1559]
[1753520972407,4.55798,3759.2,3759.1,20.1559]
[1753520972710,4.0261,3759.2,3759.1,20.68779]
[1753520973009,4.0261,3759.2,3759.1,20.1559]
[1753520973306,4.0261,3759.2,3759.1,20.68779]
[1753520973504,1.6364,3759.7,3759.6,2.4954]
[1753520973703,4.55791,3759.7,3759.6,6.1799]
[1753520973902,2.16827,3759.3,3759.2,4.879]
[1753520974099,4.0261,3759.3,3759.2,4.879]
[1753520974299,4.0261,3759.3,3759.2,5.41088]
[1753520974503,4.0261,3759.3,3759.2,6.71178]
[1753520975005,4.55796,3759.3,3759.2,6.1799]
[1753520977408,1.56598,3759.2,3759.1,13.976]
[1753520977610,4.55798,3759.2,3759.1,13.976]
[1753520978110,4.55798,3759.2,3759.1,19.1727]
[1753520978311,4.55798,3759.2,3759.1,20.1559]
[1753520980807,4.55798,3759.2,3759.1,13.976]
[1753520981207,5.29973548,3759.2,3759.1,14.8768]
[1753520981413,5.29973548,3759.2,3759.1,16.1777]
[1753520982911,5.29973548,3759.2,3759.1,17.0554]
[1753520983113,5.29973548,3759.2,3759.1,17.6668]
[1753520983612,5.29973548,3759.2,3759.1,19.1727]
[1753520983819,4.55798,3759.2,3759.1,19.1727]
[1753520984212,4.55798,3759.2,3759.1,20.1559]
[1753520986817,0.53188,3759.2,3759.1,20.1559]
[1753520987219,2.64878,3759.2,3759.1,20.1559]
[1753520987419,0.53188,3759.2,3759.1,20.1559]
[1753520987917,2.04648,3759.2,3759.1,20.1559]
[1753520988114,4.55798,3759.2,3759.1,20.1559]
[1753520988317,5.30098127,3759.2,3759.1,20.1559]
[1753520988613,4.55798,3759.2,3759.1,20.1559]
[1753520989620,4.55798,3759.2,3759.1,20.68779]
[1753520989821,4.55798,3759.2,3759.1,20.1559]
[1753520990225,4.55798,3759.2,3759.1,20.68779]
[1753520990425,5.30169896,3759.2,3759.1,20.1559]
[1753520990926,4.55798,3759.2,3759.1,20.1559]
[1753520991323,5.30201006,3759.2,3759.1,20.1559]
[1753520991519,4.55798,3759.2,3759.1,20.1559]
[1753520991718,5.30201828,3759.2,3759.1,15.2769]
[1753520991919,5.30201828,3759.2,3759.1,13.976]
[1753520993223,4.0261,3758.8,3758.7,4.674]
[1753520993418,8.50986828,3758.8,3758.7,4.674]
[1753520993821,8.50986828,3758.8,3758.7,6.1799]
[1753520995423,8.50986828,3758.8,3758.7,20.1199]
[1753520995832,8.50986828,3758.8,3758.7,20.1169]
[1753521000133,8.50986828,3758.8,3758.7,6.1799]
[1753521000432,8.50986828,3758.8,3758.7,20.1099]
[1753521006339,5.30206828,3758.8,3758.7,20.1099]
[1753521006530,0.74403828,3758.8,3758.7,20.64185]
[1753521007240,0.74403828,3758.8,3758.7,20.62885]
[1753521010829,4.6429,3759.3,3759.2,2.4346]
[1753521011038,3.95116461,3759.3,3759.2,20.50548]
[1753521012632,0.74336461,3759.3,3759.2,20.50548]
[1753521013439,0.74336461,3759.3,3759.2,20.50148]
[1753521013834,0.74336461,3759.3,3757.7,3.631]
[1753521013835,1.4351,3759.2,3757.7,3.631]
[1753521014039,1.4351,3759.2,3756.5,30.34885259]
[1753521014040,2.97348,3759.2,3759.1,0.8952]
[1753521014242,7.1761855,3759.2,3759.1,0.8952]
[1753521015341,3.95124587,3759.2,3759.1,6.0656]
[1753521015940,3.95124587,3759.2,3759.1,6.59749]
[1753521023945,3.2078,3759.2,3759.1,6.59749]
[1753521024144,0.2,3759.9,3759.8,0.53179]
[1753521024340,0.95285677,3759.9,3759.8,6.59739]
[1753521025651,0.2,3759.9,3759.8,6.59739]
[1753521025849,0.95239886,3759.9,3759.8,6.59739]
[1753521026251,0.2,3759.9,3759.8,6.59739]
[1753521028948,6.3689,3759.9,3759.8,6.0656]
[1753521029251,6.90068,3759.9,3759.8,4.7828]
[1753521029441,6.90068,3759.9,3759.8,2.9167]
[1753521029647,6.90068,3759.9,3759.8,0.8952]